[Event "Live Chess"]
[Site "Chess.com"]
[Date "2023.05.21"]
[Round "-"]
[White "TheSmoulderingMaster"]
[Black "Ian-Morley"]
[Result "1/2-1/2"]
[WhiteElo "1685"]
[BlackElo "1077"]
[TimeControl "300"]
[EndTime "1:52:34 PDT"]
[Termination "Game drawn - insufficient material"]

1. e4 {[%clk 0:04:58.8]} 1... e5 {[%clk 0:04:58.5]} 2. Nf3 {[%clk 0:04:57.6]}
2... Nc6 {[%clk 0:04:56.9]} 3. Bb5 {[%clk 0:04:56.7]} 3... a6 {[%clk 0:04:55.5]}
4. Ba4 {[%clk 0:04:54.6]} 4... Nf6 {[%clk 0:04:54.6]} 5. O-O {[%clk 0:04:53.4]}
5... b5 {[%clk 0:04:53.5]} 6. Bb3 {[%clk 0:04:52.4]} 6... Bb7 {[%clk 0:04:53]}
7. d4 {[%clk 0:04:49.8]} 7... Nxe4 {[%clk 0:04:49.9]} 8. d5 {[%clk 0:04:46.9]}
8... Nc5 {[%clk 0:04:49]} 9. dxc6 {[%clk 0:04:45.5]} 9... Nxb3 {[%clk
0:04:48.2]} 10. cxb7 {[%clk 0:04:44.8]} 10... Nxa1 {[%clk 0:04:47.3]} 11. bxa8=Q
{[%clk 0:04:43.3]} 11... Qxa8 {[%clk 0:04:46.4]} 12. Nxe5 {[%clk 0:04:41.1]}
12... Bd6 {[%clk 0:04:39]} 13. Re1 {[%clk 0:04:37.3]} 13... O-O {[%clk
0:04:37.8]} 14. Nxd7 {[%clk 0:04:35.5]} 14... Rd8 {[%clk 0:04:33.1]} 15. Qg4
{[%clk 0:04:29.3]} 15... Nxc2 {[%clk 0:04:20.7]} 16. Nc3 {[%clk 0:04:27.4]}
16... Nxe1 {[%clk 0:04:19.3]} 17. Bh6 {[%clk 0:04:24.8]} 17... Qxg2+ {[%clk
0:04:10.9]} 18. Qxg2 {[%clk 0:04:23.1]} 18... Nxg2 {[%clk 0:04:10.2]} 19. Kxg2
{[%clk 0:04:19.6]} 19... gxh6 {[%clk 0:04:04.2]} 20. Nf6+ {[%clk 0:04:18.2]}
20... Kg7 {[%clk 0:04:02.6]} 21. Ng4 {[%clk 0:04:15.9]} 21... b4 {[%clk
0:03:59.5]} 22. Ne4 {[%clk 0:04:13.2]} 22... Rb8 {[%clk 0:03:46.4]} 23. Ngf6
{[%clk 0:04:09.4]} 23... a5 {[%clk 0:03:39.1]} 24. Nd7 {[%clk 0:04:08]} 24...
Re8 {[%clk 0:03:35.5]} 25. f3 {[%clk 0:04:03.2]} 25... a4 {[%clk 0:03:32.5]} 26.
Ndf6 {[%clk 0:03:59.7]} 26... Rxe4 {[%clk 0:03:23.9]} 27. Nxe4 {[%clk
0:03:58.6]} 27... Be5 {[%clk 0:03:21.4]} 28. Nc5 {[%clk 0:03:54.2]} 28... a3
{[%clk 0:03:18.4]} 29. bxa3 {[%clk 0:03:49.6]} 29... bxa3 {[%clk 0:03:17.3]} 30.
Nd3 {[%clk 0:03:46.6]} 30... Bb2 {[%clk 0:03:16]} 31. Kf2 {[%clk 0:03:44.4]}
31... Kf6 {[%clk 0:03:15.2]} 32. Ke3 {[%clk 0:03:42.9]} 32... c6 {[%clk
0:03:11.2]} 33. Ke4 {[%clk 0:03:41]} 33... Kg5 {[%clk 0:03:09.2]} 34. Nb4 {[%clk
0:03:37.5]} 34... c5 {[%clk 0:03:07.3]} 35. Nd5 {[%clk 0:03:36.4]} 35... c4
{[%clk 0:03:05.5]} 36. f4+ {[%clk 0:03:28.4]} 36... Kg4 {[%clk 0:03:03.4]} 37.
f5 {[%clk 0:03:25.8]} 37... c3 {[%clk 0:03:01.9]} 38. f6 {[%clk 0:03:20.4]}
38... c2 {[%clk 0:03:00.6]} 39. Ne3+ {[%clk 0:03:19.5]} 39... Kg5 {[%clk
0:02:57.9]} 40. Nxc2 {[%clk 0:03:17.3]} 40... Kxf6 {[%clk 0:02:57.3]} 41. Kf4
{[%clk 0:03:13]} 41... Kg6 {[%clk 0:02:55.4]} 42. Kg4 {[%clk 0:03:12.1]} 42...
f5+ {[%clk 0:02:54.8]} 43. Kf4 {[%clk 0:03:10.7]} 43... h5 {[%clk 0:02:54.2]}
44. h3 {[%clk 0:03:09.1]} 44... h6 {[%clk 0:02:53.6]} 45. Ne3 {[%clk 0:03:06.9]}
45... Be5+ {[%clk 0:02:48.7]} 46. Kf3 {[%clk 0:03:05.9]} 46... f4 {[%clk
0:02:43.8]} 47. Nc4 {[%clk 0:03:04.9]} 47... Bb2 {[%clk 0:02:42]} 48. Kxf4
{[%clk 0:03:03.2]} 48... Bc1+ {[%clk 0:02:40.4]} 49. Kf3 {[%clk 0:03:02.2]}
49... Kf5 {[%clk 0:02:39.1]} 50. Nd6+ {[%clk 0:02:57]} 50... Kg5 {[%clk
0:02:37.6]} 51. Nf7+ {[%clk 0:02:55.7]} 51... Kh4 {[%clk 0:02:36.6]} 52. Kg2
{[%clk 0:02:51.3]} 52... Bb2 {[%clk 0:02:25]} 53. Nd6 {[%clk 0:02:49.2]} 53...
Kg5 {[%clk 0:02:23.7]} 54. Kf3 {[%clk 0:02:45.5]} 54... h4 {[%clk 0:02:22.9]}
55. Ne4+ {[%clk 0:02:42.5]} 55... Kf5 {[%clk 0:02:20.2]} 56. Nd6+ {[%clk
0:02:36.6]} 56... Ke5 {[%clk 0:02:16.8]} 57. Nf7+ {[%clk 0:02:34.5]} 57... Kf6
{[%clk 0:02:15.5]} 58. Nxh6 {[%clk 0:02:33.5]} 58... Ke5 {[%clk 0:02:14.5]} 59.
Kg4 {[%clk 0:02:30.6]} 59... Ke4 {[%clk 0:02:11.8]} 60. Kxh4 {[%clk 0:02:27.9]}
60... Kd3 {[%clk 0:02:11.2]} 61. Kg4 {[%clk 0:02:26.3]} 61... Kc2 {[%clk
0:02:10.5]} 62. Nf5 {[%clk 0:02:25.5]} 62... Kb1 {[%clk 0:02:10]} 63. Ne3 {[%clk
0:02:23.6]} 63... Kxa2 {[%clk 0:02:09.4]} 64. Nc2 {[%clk 0:02:19.5]} 64... Kb3
{[%clk 0:02:03.6]} 65. Nxa3 {[%clk 0:02:18.8]} 65... Kxa3 {[%clk 0:02:02.5]} 66.
h4 {[%clk 0:02:18.2]} 66... Bh8 {[%clk 0:02:01.1]} 67. h5 {[%clk 0:02:17.6]}
67... Kb4 {[%clk 0:02:00]} 68. Kg5 {[%clk 0:02:15.8]} 68... Kc5 {[%clk
0:01:59.4]} 69. Kg6 {[%clk 0:02:15.4]} 69... Kd6 {[%clk 0:01:57.8]} 70. h6
{[%clk 0:02:15.1]} 70... Ke7 {[%clk 0:01:56.3]} 71. Kh7 {[%clk 0:02:14.5]} 71...
Be5 {[%clk 0:01:53.7]} 72. Kg8 {[%clk 0:02:13.9]} 72... Ke8 {[%clk 0:01:49.3]}
73. h7 {[%clk 0:02:13.2]} 73... Ke7 {[%clk 0:01:48]} 74. h8=Q {[%clk 0:02:12.4]}
74... Bxh8 {[%clk 0:01:46.9]} 1/2-1/2

[Event "Live Chess"]
[Site "Chess.com"]
[Date "2023.05.21"]
[Round "-"]
[White "chessfiction"]
[Black "Richardallis"]
[Result "1-0"]
[WhiteElo "2332"]
[BlackElo "1884"]
[TimeControl "300"]
[EndTime "1:52:43 PDT"]
[Termination "chessfiction won by resignation"]

1. e4 {[%clk 0:04:59.5]} 1... d5 {[%clk 0:04:57.9]} 2. d4 {[%clk 0:04:59.2]}
2... dxe4 {[%clk 0:04:56.7]} 3. f3 {[%clk 0:04:59.1]} 3... e5 {[%clk 0:04:54.1]}
4. Bc4 {[%clk 0:04:58.1]} 4... exd4 {[%clk 0:04:49.9]} 5. c3 {[%clk 0:04:56.2]}
5... c5 {[%clk 0:04:46.5]} 6. Qb3 {[%clk 0:04:52.8]} 6... Qf6 {[%clk 0:04:39.2]}
7. Ne2 {[%clk 0:04:44.7]} 7... Nc6 {[%clk 0:04:37.2]} 8. O-O {[%clk 0:04:42.5]}
8... e3 {[%clk 0:04:34.8]} 9. cxd4 {[%clk 0:04:40]} 9... cxd4 {[%clk 0:04:33.7]}
10. Na3 {[%clk 0:04:38.5]} 10... Bxa3 {[%clk 0:04:28.4]} 11. bxa3 {[%clk
0:04:35.3]} 11... Nge7 {[%clk 0:04:26.3]} 12. Bb2 {[%clk 0:04:29.2]} 12... O-O
{[%clk 0:04:20.7]} 13. Rad1 {[%clk 0:04:26.9]} 13... Nf5 {[%clk 0:04:13.4]} 14.
Bd3 {[%clk 0:04:22.5]} 14... Be6 {[%clk 0:03:56.5]} 15. Qxb7 {[%clk 0:04:20.1]}
15... Bd5 {[%clk 0:03:54.8]} 16. Qb5 {[%clk 0:04:04.6]} 16... Rad8 {[%clk
0:03:46.1]} 17. Bxf5 {[%clk 0:04:00.5]} 17... Qxf5 {[%clk 0:03:42.7]} 18. Nxd4
{[%clk 0:03:57.6]} 18... Nxd4 {[%clk 0:03:40.3]} 19. Bxd4 {[%clk 0:03:52.1]}
19... Qe6 {[%clk 0:03:33.1]} 20. Rfe1 {[%clk 0:03:47.9]} 20... Bc4 {[%clk
0:03:29]} 21. Qg5 {[%clk 0:03:43.9]} 21... f6 {[%clk 0:03:22.3]} 22. Qxe3 {[%clk
0:03:38.4]} 22... Qa6 {[%clk 0:03:12.7]} 23. Bxa7 {[%clk 0:03:32.9]} 23... Rxd1
{[%clk 0:02:51]} 24. Rxd1 {[%clk 0:03:29.8]} 24... Ra8 {[%clk 0:02:50.4]} 25.
Rd7 {[%clk 0:03:13.1]} 25... Bxa2 {[%clk 0:02:44.4]} 26. Qe7 {[%clk 0:03:07.3]}
1-0

[Event "Live Chess"]
[Site "Chess.com"]
[Date "2023.05.21"]
[Round "-"]
[White "Crowded_House"]
[Black "chekagain"]
[Result "1-0"]
[WhiteElo "1662"]
[BlackElo "814"]
[TimeControl "300"]
[EndTime "1:52:46 PDT"]
[Termination "Crowded_House won by checkmate"]

1. d4 {[%clk 0:04:59]} 1... e5 {[%clk 0:04:58.1]} 2. dxe5 {[%clk 0:04:54.2]}
2... Nc6 {[%clk 0:04:56.9]} 3. Nf3 {[%clk 0:04:52.2]} 3... Qe7 {[%clk
0:04:55.8]} 4. c3 {[%clk 0:04:44.8]} 4... Nxe5 {[%clk 0:04:52.1]} 5. Nxe5 {[%clk
0:04:43.7]} 5... Qxe5 {[%clk 0:04:50.1]} 6. Nd2 {[%clk 0:04:43.4]} 6... g6
{[%clk 0:04:47.2]} 7. Nf3 {[%clk 0:04:42.9]} 7... Qa5 {[%clk 0:04:38.4]} 8. Qd4
{[%clk 0:04:28.4]} 8... f6 {[%clk 0:04:25.9]} 9. e3 {[%clk 0:04:21.8]} 9... Bg7
{[%clk 0:04:23.9]} 10. Qe4+ {[%clk 0:04:15.3]} 10... Ne7 {[%clk 0:04:21.8]} 11.
Bd3 {[%clk 0:03:49.3]} 11... O-O {[%clk 0:04:16.8]} 12. Bc4+ {[%clk 0:03:40.7]}
12... Kh8 {[%clk 0:04:10.1]} 13. Bb3 {[%clk 0:03:39.1]} 13... Nc6 {[%clk
0:04:03.8]} 14. O-O {[%clk 0:03:35.6]} 14... Qh5 {[%clk 0:03:52.2]} 15. Qh4
{[%clk 0:03:31.2]} 15... Ne5 {[%clk 0:03:37]} 16. Qxh5 {[%clk 0:03:24.6]} 16...
gxh5 {[%clk 0:03:31.5]} 17. Nh4 {[%clk 0:03:08.6]} 17... Ng4 {[%clk 0:03:17.9]}
18. h3 {[%clk 0:03:04.3]} 18... Ne5 {[%clk 0:03:07.7]} 19. Nf5 {[%clk
0:03:02.7]} 19... d6 {[%clk 0:02:56.9]} 20. Nxg7 {[%clk 0:03:00.9]} 20... Kxg7
{[%clk 0:02:55.4]} 21. Rd1 {[%clk 0:02:55.4]} 21... Kh8 {[%clk 0:02:52.1]} 22.
Rd2 {[%clk 0:02:47.7]} 22... Rg8 {[%clk 0:02:49.7]} 23. Kf1 {[%clk 0:02:38.2]}
23... b6 {[%clk 0:02:34]} 24. Bd5 {[%clk 0:02:31.4]} 24... Rb8 {[%clk 0:02:31]}
25. b3 {[%clk 0:02:21.9]} 25... c6 {[%clk 0:02:26.7]} 26. Bxg8 {[%clk
0:02:20.6]} 26... Kxg8 {[%clk 0:02:25.1]} 27. Bb2 {[%clk 0:02:17.1]} 27... c5
{[%clk 0:02:22.3]} 28. c4 {[%clk 0:02:14.3]} 28... Nf7 {[%clk 0:02:16.5]} 29.
Bxf6 {[%clk 0:02:12.1]} 29... Bb7 {[%clk 0:02:13.9]} 30. Rad1 {[%clk 0:02:07.1]}
30... Rf8 {[%clk 0:02:06.7]} 31. Be7 {[%clk 0:02:05.8]} 31... Re8 {[%clk
0:02:03.1]} 32. Bxd6 {[%clk 0:01:55.3]} 32... Nxd6 {[%clk 0:02:00.8]} 33. Rxd6
{[%clk 0:01:54.2]} 33... Kg7 {[%clk 0:01:48.2]} 34. Rd7+ {[%clk 0:01:52]} 34...
Kh6 {[%clk 0:01:44.3]} 35. Rxb7 {[%clk 0:01:49]} 35... a5 {[%clk 0:01:39.1]} 36.
Rdd7 {[%clk 0:01:47.4]} 36... h4 {[%clk 0:01:37.6]} 37. Rxh7+ {[%clk 0:01:45.1]}
37... Kg5 {[%clk 0:01:37]} 38. Rbg7+ {[%clk 0:01:42.4]} 38... Kf6 {[%clk
0:01:35.9]} 39. Rf7+ {[%clk 0:01:39.9]} 39... Ke6 {[%clk 0:01:34]} 40. Rb7
{[%clk 0:01:34.2]} 40... Kd6 {[%clk 0:01:29]} 41. Rxb6+ {[%clk 0:01:33.2]} 41...
Ke5 {[%clk 0:01:27.6]} 42. Rxh4 {[%clk 0:01:31]} 42... a4 {[%clk 0:01:24.6]} 43.
Rh5+ {[%clk 0:01:26.6]} 43... Ke4 {[%clk 0:01:23]} 44. Rxc5 {[%clk 0:01:22.4]}
44... axb3 {[%clk 0:01:19.7]} 45. axb3 {[%clk 0:01:20.1]} 45... Kd3 {[%clk
0:01:19.1]} 46. Rd5+ {[%clk 0:01:15.4]} 46... Kc2 {[%clk 0:01:16.3]} 47. b4
{[%clk 0:01:12.2]} 47... Kc3 {[%clk 0:01:15.1]} 48. c5 {[%clk 0:01:10.4]} 48...
Kc4 {[%clk 0:01:14.1]} 49. Rd1 {[%clk 0:01:05.7]} 49... Kc3 {[%clk 0:01:08.6]}
50. b5 {[%clk 0:01:01.2]} 50... Kc2 {[%clk 0:01:05]} 51. Rd4 {[%clk 0:00:56.5]}
51... Kc3 {[%clk 0:01:03.5]} 52. c6 {[%clk 0:00:55.1]} 52... Rc8 {[%clk
0:01:00]} 53. Ra6 {[%clk 0:00:50.4]} 53... Kb3 {[%clk 0:00:56.6]} 54. Rd6 {[%clk
0:00:48.4]} 54... Kb4 {[%clk 0:00:55.4]} 55. b6 {[%clk 0:00:46]} 55... Kb5
{[%clk 0:00:54.3]} 56. b7 {[%clk 0:00:43.7]} 56... Kxa6 {[%clk 0:00:53]} 57.
bxc8=Q+ {[%clk 0:00:42.2]} 57... Kb6 {[%clk 0:00:52.3]} 58. Qb7+ {[%clk
0:00:40.7]} 58... Kc5 {[%clk 0:00:50.8]} 59. Rd8 {[%clk 0:00:25.3]} 59... Kc4
{[%clk 0:00:48.3]} 60. c7 {[%clk 0:00:23.8]} 60... Kc5 {[%clk 0:00:43.9]} 61.
c8=Q# {[%clk 0:00:22.8]} 1-0

[Event "Live Chess"]
[Site "Chess.com"]
[Date "2023.05.21"]
[Round "-"]
[White "Tushinskiy"]
[Black "domrobson"]
[Result "0-1"]
[WhiteElo "2170"]
[BlackElo "1747"]
[TimeControl "300"]
[EndTime "1:52:46 PDT"]
[Termination "domrobson won by checkmate"]

1. d4 {[%clk 0:04:56.1]} 1... Nf6 {[%clk 0:04:58.9]} 2. c3 {[%clk 0:04:56]} 2...
d5 {[%clk 0:04:57.1]} 3. Nf3 {[%clk 0:04:55.9]} 3... c5 {[%clk 0:04:56.1]} 4.
Bf4 {[%clk 0:04:50.7]} 4... e6 {[%clk 0:04:53.2]} 5. e3 {[%clk 0:04:49.5]} 5...
Bd6 {[%clk 0:04:50.6]} 6. Bg3 {[%clk 0:04:47.8]} 6... Qe7 {[%clk 0:04:44.9]} 7.
Ne5 {[%clk 0:04:45.3]} 7... O-O {[%clk 0:04:43.1]} 8. f4 {[%clk 0:04:44.1]} 8...
cxd4 {[%clk 0:04:35.3]} 9. exd4 {[%clk 0:04:42.9]} 9... Ne4 {[%clk 0:04:31.5]}
10. Nd2 {[%clk 0:04:40.1]} 10... f6 {[%clk 0:04:30.3]} 11. Nxe4 {[%clk
0:04:38.3]} 11... dxe4 {[%clk 0:04:29.3]} 12. Nc4 {[%clk 0:04:35.3]} 12... f5
{[%clk 0:04:22.4]} 13. Nxd6 {[%clk 0:04:33]} 13... Qxd6 {[%clk 0:04:21.2]} 14.
Bc4 {[%clk 0:04:31.5]} 14... Bd7 {[%clk 0:04:17]} 15. Qe2 {[%clk 0:04:29.9]}
15... a6 {[%clk 0:04:15.2]} 16. O-O-O {[%clk 0:04:29]} 16... b5 {[%clk
0:04:13.6]} 17. Bb3 {[%clk 0:04:27.8]} 17... a5 {[%clk 0:04:12.6]} 18. a3 {[%clk
0:04:26.3]} 18... b4 {[%clk 0:04:10.3]} 19. axb4 {[%clk 0:04:25]} 19... axb4
{[%clk 0:04:08]} 20. c4 {[%clk 0:04:24.2]} 20... Nc6 {[%clk 0:03:58.4]} 21. d5
{[%clk 0:04:22.8]} 21... Na5 {[%clk 0:03:48.8]} 22. Bc2 {[%clk 0:04:07]} 22...
Qc5 {[%clk 0:03:35.9]} 23. b3 {[%clk 0:04:02.6]} 23... Nb7 {[%clk 0:03:24.2]}
24. Bf2 {[%clk 0:03:58]} 24... Qa5 {[%clk 0:03:15.6]} 25. Bd4 {[%clk 0:03:41.2]}
25... exd5 {[%clk 0:03:12.4]} 26. cxd5 {[%clk 0:03:40]} 26... Rfc8 {[%clk
0:03:05.1]} 27. Bb2 {[%clk 0:03:23.8]} 27... Nc5 {[%clk 0:02:51.4]} 28. Kb1
{[%clk 0:03:21.2]} 28... Qa2+ {[%clk 0:02:47.2]} 29. Kc1 {[%clk 0:03:20.2]}
29... Nxb3# {[%clk 0:02:46.1]} 0-1

[Event "Live Chess"]
[Site "Chess.com"]
[Date "2023.05.21"]
[Round "-"]
[White "EdenHazard8"]
[Black "Leonid_Starozhilov"]
[Result "1-0"]
[WhiteElo "1959"]
[BlackElo "2639"]
[TimeControl "300"]
[EndTime "1:52:50 PDT"]
[Termination "EdenHazard8 won by checkmate"]

1. e4 {[%clk 0:04:56.5]} 1... c5 {[%clk 0:04:58.1]} 2. Nc3 {[%clk 0:04:54.5]}
2... e6 {[%clk 0:04:56.7]} 3. f4 {[%clk 0:04:52.4]} 3... d5 {[%clk 0:04:55.5]}
4. d3 {[%clk 0:04:49.8]} 4... Nc6 {[%clk 0:04:46]} 5. Nf3 {[%clk 0:04:48.1]}
5... g6 {[%clk 0:04:38.7]} 6. Be2 {[%clk 0:04:46.6]} 6... Bg7 {[%clk 0:04:35.3]}
7. O-O {[%clk 0:04:45.4]} 7... Nge7 {[%clk 0:04:34.6]} 8. Qe1 {[%clk 0:04:44.1]}
8... Nd4 {[%clk 0:04:30.8]} 9. Nxd4 {[%clk 0:04:39.6]} 9... cxd4 {[%clk
0:04:28.9]} 10. Nd1 {[%clk 0:04:39.2]} 10... dxe4 {[%clk 0:04:26.9]} 11. dxe4
{[%clk 0:04:37.8]} 11... f5 {[%clk 0:04:23.9]} 12. exf5 {[%clk 0:04:33.8]} 12...
Nxf5 {[%clk 0:04:22.2]} 13. Bc4 {[%clk 0:04:30.4]} 13... Qb6 {[%clk 0:04:18.8]}
14. Nf2 {[%clk 0:04:26.3]} 14... Ne3 {[%clk 0:04:13.7]} 15. Bb3 {[%clk
0:04:23.9]} 15... Nxf1 {[%clk 0:04:11]} 16. Qxf1 {[%clk 0:04:21.8]} 16... O-O
{[%clk 0:04:10.6]} 17. Bd2 {[%clk 0:04:19.6]} 17... Kh8 {[%clk 0:04:09.9]} 18.
Re1 {[%clk 0:04:17.8]} 18... Bd7 {[%clk 0:04:08.3]} 19. Nd3 {[%clk 0:04:16]}
19... Rae8 {[%clk 0:04:05.3]} 20. Ne5 {[%clk 0:04:14.2]} 20... Bc6 {[%clk
0:04:00]} 21. Qd3 {[%clk 0:04:08.8]} 21... Bd5 {[%clk 0:03:55.6]} 22. Qh3 {[%clk
0:04:05.7]} 22... Kg8 {[%clk 0:03:47.5]} 23. Nd7 {[%clk 0:03:53.5]} 23... Qc5
{[%clk 0:03:42.3]} 24. Nxc5 {[%clk 0:03:52.1]} 24... Bxb3 {[%clk 0:03:33.9]} 25.
axb3 {[%clk 0:03:50.4]} 25... Rf5 {[%clk 0:03:32.9]} 26. Nxe6 {[%clk 0:03:48]}
26... Bf6 {[%clk 0:03:28.9]} 27. Qd3 {[%clk 0:03:42.4]} 27... Kf7 {[%clk
0:03:22.1]} 28. Nxd4 {[%clk 0:03:41]} 28... Rd5 {[%clk 0:03:18.6]} 29. Rxe8
{[%clk 0:03:34.6]} 29... Rxd4 {[%clk 0:03:15]} 30. Qe3 {[%clk 0:03:30.5]} 30...
Rd6 {[%clk 0:03:10.1]} 31. Re4 {[%clk 0:03:25.7]} 31... Bxb2 {[%clk 0:03:08.2]}
32. Bc3 {[%clk 0:03:23.4]} 32... Ba3 {[%clk 0:03:06.3]} 33. Re7+ {[%clk
0:03:21.4]} 33... Kf8 {[%clk 0:03:05.9]} 34. Re8+ {[%clk 0:03:18.2]} 34... Kf7
{[%clk 0:03:04.3]} 35. Qe7# {[%clk 0:03:17.6]} 1-0

[Event "Live Chess"]
[Site "Chess.com"]
[Date "2023.05.21"]
[Round "-"]
[White "JoshMcK"]
[Black "RoaringKnights"]
[Result "1-0"]
[WhiteElo "1523"]
[BlackElo "1033"]
[TimeControl "300"]
[EndTime "1:53:05 PDT"]
[Termination "JoshMcK won by checkmate"]

1. e4 {[%clk 0:04:59.2]} 1... c6 {[%clk 0:04:58.8]} 2. d4 {[%clk 0:04:57.8]}
2... d5 {[%clk 0:04:57.3]} 3. e5 {[%clk 0:04:57.3]} 3... Bf5 {[%clk 0:04:56]} 4.
h4 {[%clk 0:04:56.8]} 4... e6 {[%clk 0:04:55.1]} 5. g4 {[%clk 0:04:53.8]} 5...
Be4 {[%clk 0:04:52.1]} 6. f3 {[%clk 0:04:52.8]} 6... Bxc2 {[%clk 0:04:48]} 7.
Qxc2 {[%clk 0:04:51.4]} 7... Bb4+ {[%clk 0:04:43.2]} 8. Bd2 {[%clk 0:04:49.9]}
8... Bxd2+ {[%clk 0:04:41.8]} 9. Nxd2 {[%clk 0:04:49.8]} 9... Na6 {[%clk
0:04:39.8]} 10. Nb3 {[%clk 0:04:47.1]} 10... Nb4 {[%clk 0:04:37.9]} 11. Qc3
{[%clk 0:04:41.2]} 11... Na6 {[%clk 0:04:32.2]} 12. Bxa6 {[%clk 0:04:36]} 12...
bxa6 {[%clk 0:04:30.4]} 13. Qxc6+ {[%clk 0:04:35.6]} 13... Kf8 {[%clk
0:04:26.7]} 14. Qxa6 {[%clk 0:04:33.1]} 14... Rc8 {[%clk 0:04:24.5]} 15. Qd6+
{[%clk 0:04:13.8]} 15... Qxd6 {[%clk 0:04:22.9]} 16. exd6 {[%clk 0:04:13.6]}
16... Rd8 {[%clk 0:04:20.4]} 17. Rc1 {[%clk 0:04:08.2]} 17... Rxd6 {[%clk
0:04:18.6]} 18. Ne2 {[%clk 0:04:06.3]} 18... Ke7 {[%clk 0:04:17.4]} 19. Nc3
{[%clk 0:04:04.6]} 19... Rc6 {[%clk 0:04:15.6]} 20. O-O {[%clk 0:04:01.8]} 20...
Nf6 {[%clk 0:04:14]} 21. Nxd5+ {[%clk 0:03:57.7]} 21... Nxd5 {[%clk 0:04:12.9]}
22. Rxc6 {[%clk 0:03:56.5]} 22... Ne3 {[%clk 0:04:10.9]} 23. Rfc1 {[%clk
0:03:53.9]} 23... Nd5 {[%clk 0:04:07.1]} 24. Ra6 {[%clk 0:03:48.1]} 24... Rd8
{[%clk 0:04:05.6]} 25. Rxa7+ {[%clk 0:03:46.3]} 25... Rd7 {[%clk 0:04:05]} 26.
Rxd7+ {[%clk 0:03:42.4]} 26... Kxd7 {[%clk 0:04:04.3]} 27. Nc5+ {[%clk
0:03:41.7]} 27... Kd6 {[%clk 0:04:03.6]} 28. a4 {[%clk 0:03:37.8]} 28... Nb6
{[%clk 0:04:01.9]} 29. a5 {[%clk 0:03:36.1]} 29... Nc8 {[%clk 0:04:00.3]} 30. a6
{[%clk 0:03:34.9]} 30... Na7 {[%clk 0:03:57.4]} 31. Nb7+ {[%clk 0:03:33.4]}
31... Kd5 {[%clk 0:03:55.8]} 32. b4 {[%clk 0:03:31.1]} 32... Kxd4 {[%clk
0:03:54.3]} 33. Rc7 {[%clk 0:03:28]} 33... f5 {[%clk 0:03:51.9]} 34. gxf5 {[%clk
0:03:25.9]} 34... exf5 {[%clk 0:03:51]} 35. Rxg7 {[%clk 0:03:25.4]} 35... Kc4
{[%clk 0:03:48]} 36. Nd6+ {[%clk 0:03:21.7]} 36... Kxb4 {[%clk 0:03:46.5]} 37.
Rxa7 {[%clk 0:03:21.6]} 37... Ka5 {[%clk 0:03:45.1]} 38. Rxh7 {[%clk 0:03:20.4]}
38... Kb6 {[%clk 0:03:43.8]} 39. a7 {[%clk 0:03:17.7]} 39... Ka6 {[%clk
0:03:42.3]} 40. a8=Q+ {[%clk 0:03:17.6]} 40... Kb6 {[%clk 0:03:41.6]} 41. Rb7+
{[%clk 0:03:15.7]} 41... Kc5 {[%clk 0:03:40.5]} 42. Qc8+ {[%clk 0:03:14.5]}
42... Kxd6 {[%clk 0:03:40]} 43. Rd7+ {[%clk 0:03:13.4]} 43... Ke5 {[%clk
0:03:39]} 44. Qe8+ {[%clk 0:03:13.3]} 44... Kf4 {[%clk 0:03:37.9]} 45. Rd4+
{[%clk 0:03:09.8]} 45... Kg3 {[%clk 0:03:35.6]} 46. Qg8+ {[%clk 0:03:07.7]}
46... Kxf3 {[%clk 0:03:31.6]} 47. Qg2+ {[%clk 0:03:06.3]} 47... Ke3 {[%clk
0:03:30.3]} 48. Qf2# {[%clk 0:03:05.2]} 1-0

[Event "Live Chess"]
[Site "Chess.com"]
[Date "2023.05.21"]
[Round "-"]
[White "Rusty_Bridges"]
[Black "Duke_of_Bebington"]
[Result "0-1"]
[WhiteElo "1514"]
[BlackElo "1597"]
[TimeControl "300"]
[EndTime "1:53:18 PDT"]
[Termination "Duke_of_Bebington won by resignation"]

1. e4 {[%clk 0:04:58.1]} 1... e5 {[%clk 0:04:58.7]} 2. f4 {[%clk 0:04:55.4]}
2... exf4 {[%clk 0:04:57.3]} 3. Nf3 {[%clk 0:04:53.4]} 3... d5 {[%clk
0:04:54.5]} 4. exd5 {[%clk 0:04:51.5]} 4... Nf6 {[%clk 0:04:52.8]} 5. Nc3 {[%clk
0:04:49.6]} 5... Nxd5 {[%clk 0:04:49.1]} 6. Nxd5 {[%clk 0:04:47.4]} 6... Qxd5
{[%clk 0:04:47.5]} 7. d3 {[%clk 0:04:46.1]} 7... Bd6 {[%clk 0:04:28.5]} 8. Be2
{[%clk 0:04:33.7]} 8... O-O {[%clk 0:04:24.5]} 9. O-O {[%clk 0:04:31.5]} 9...
Nc6 {[%clk 0:04:18]} 10. Nh4 {[%clk 0:04:21.3]} 10... g5 {[%clk 0:04:09.1]} 11.
Nf3 {[%clk 0:04:13.3]} 11... Nd4 {[%clk 0:03:54.7]} 12. c3 {[%clk 0:04:05.7]}
12... Nxe2+ {[%clk 0:03:44.4]} 13. Qxe2 {[%clk 0:04:03.7]} 13... Bg4 {[%clk
0:03:39.3]} 14. h3 {[%clk 0:03:58.6]} 14... Bh5 {[%clk 0:03:37.1]} 15. Qe4
{[%clk 0:03:35.9]} 15... Bc5+ {[%clk 0:03:21.4]} 16. Kh1 {[%clk 0:03:12.8]}
16... Qxe4 {[%clk 0:03:14.5]} 17. dxe4 {[%clk 0:03:10.9]} 17... Rfe8 {[%clk
0:03:10.6]} 18. Nxg5 {[%clk 0:03:03.4]} 18... h6 {[%clk 0:03:03.9]} 19. Nf3
{[%clk 0:02:40.1]} 19... Rxe4 {[%clk 0:03:01.9]} 20. b4 {[%clk 0:02:19.3]} 20...
Be3 {[%clk 0:02:52.8]} 21. Bb2 {[%clk 0:02:12]} 21... Rae8 {[%clk 0:02:31.3]}
22. Rad1 {[%clk 0:02:08.7]} 22... Bxf3 {[%clk 0:02:23.4]} 23. Rxf3 {[%clk
0:02:04.6]} 23... R4e7 {[%clk 0:02:16.5]} 24. c4 {[%clk 0:01:52.7]} 24... Kh7
{[%clk 0:02:15.3]} 25. a4 {[%clk 0:01:47.3]} 25... Re4 {[%clk 0:01:59.8]} 26.
Rd7 {[%clk 0:01:36.1]} 26... R8e7 {[%clk 0:01:58.6]} 27. Rxe7 {[%clk 0:01:32.8]}
27... Rxe7 {[%clk 0:01:58.5]} 28. c5 {[%clk 0:01:09.4]} 28... Re4 {[%clk
0:01:50.3]} 29. Bc3 {[%clk 0:01:06.4]} 29... Rc4 {[%clk 0:01:45.9]} 30. Be5
{[%clk 0:01:05]} 30... Rxb4 {[%clk 0:01:41.4]} 31. Bxc7 {[%clk 0:01:03.9]} 31...
Rxa4 {[%clk 0:01:37.4]} 32. g3 {[%clk 0:01:00.8]} 32... Ra1+ {[%clk 0:01:29]}
33. Kg2 {[%clk 0:00:58.9]} 33... Rg1+ {[%clk 0:01:13.5]} 34. Kh2 {[%clk
0:00:55.4]} 34... fxg3+ {[%clk 0:01:08.5]} 35. Rxg3 {[%clk 0:00:50.2]} 35...
Rxg3 {[%clk 0:01:05.7]} 36. Kxg3 {[%clk 0:00:49]} 36... Bxc5 {[%clk 0:01:04.6]}
37. Kf4 {[%clk 0:00:44.9]} 37... a6 {[%clk 0:01:02.9]} 38. Ke4 {[%clk
0:00:43.7]} 38... b5 {[%clk 0:00:59.4]} 39. Kd5 {[%clk 0:00:42]} 39... Ba3
{[%clk 0:00:56]} 0-1